fUST/lending_fUST_20240621
["ID","MTS","AMOUNT","RATE_DAILY","PERIOD"]
[329991620,1718903443588,-501.74309777,0.00054794,120]
[329991621,1718903443598,-500.0,0.00054794,7]
[329991622,1718903443607,-500.0,0.00054794,120]
[329991623,1718903443617,-500.0,0.00054794,120]
[329991624,1718903443626,-500.0,0.00054794,120]
[329991625,1718903443635,-500.0,0.00054794,120]
[329991626,1718903443644,-500.0,0.00054794,120]
[329991627,1718903443653,-501.6928506,0.00054794,120]
[329991628,1718903443663,-500.0,0.00054794,120]
[329991629,1718903443671,-500.0,0.00054794,120]
[329991630,1718903443680,-501.89316035,0.00054794,120]
[329991631,1718903443689,-194.957414,0.00054794,120]
[329991632,1718903443699,-503.31674977,0.00054794,120]
[329991633,1718903443708,-502.83306946,0.00054794,120]
[329991634,1718903443717,-500.0,0.00054794,120]
[329991635,1718903443727,-5011.15,0.00054794,120]
[329991638,1718903443736,-5011.15,0.00054794,120]
[329991641,1718903443745,-5011.15,0.00054794,120]
[329991644,1718903443759,-500.0,0.00054794,120]
[329991646,1718903443769,-7580.14,0.00054794,120]
[329991647,1718903443779,-5011.15,0.00054794,120]
[329991648,1718903443788,-5011.15,0.00054794,120]
[329991649,1718903443799,-5011.15,0.00054794,120]
[329991650,1718903443808,-5011.15,0.00054794,120]
[329991651,1718903443817,-5011.15,0.00054794,120]
[329991652,1718903443826,-5011.15,0.00054794,120]
[329991653,1718903443839,-5011.15,0.00054794,120]
[329991654,1718903443848,-3695.98502023,0.00054794,120]
[329991655,1718903443958,-658.27977892,0.00054794,120]
[329991656,1718903444210,-656.88520085,0.00054794,120]
[329991657,1718903444220,-992.81825707,0.00054794,120]
[329991658,1718903444289,-4018.33174293,0.00054794,120]
[329991659,1718903444299,-1117.26,0.00054794,120]
[329991660,1718903444308,-5011.15,0.00054794,120]
[329991661,1718903444318,-176.65892902,0.00054794,120]
[329991662,1718903444327,-500.0,0.00054794,120]
[329991663,1718903444337,-500.0,0.00054794,120]
[329991664,1718903444347,-3240.93,0.00054794,120]
[329991665,1718903444356,-500.0,0.00054794,120]
[329991666,1718903444366,-500.0,0.00054794,120]
[329991667,1718903444375,-478.192287,0.00054794,14]
[329991668,1718903444384,-478.192287,0.00054794,14]
[329991669,1718903444394,-959.8,0.00054794,120]
[329991670,1718903444403,-265.024962,0.00054794,14]
[329991671,1718903444413,-478.192287,0.00054794,14]
[329991672,1718903444423,-478.192287,0.00054794,14]
[329991673,1718903444432,-1155.23,0.00054794,120]
[329991674,1718903444442,-500.0,0.00054794,120]
[329991675,1718903444451,-506.19553791,0.00054794,120]
[329991676,1718903444460,-500.0,0.00054794,120]
[329991677,1718903444470,-500.0,0.00054794,120]
[329991678,1718903444479,-500.0,0.00054794,120]
[329991679,1718903444488,-508.79410002,0.00054794,120]
[329991680,1718903444498,-500.0,0.00054794,120]
[329991681,1718903444508,-500.0,0.00054794,120]
[329991682,1718903444518,-496.92849677,0.00054794,120]
[329991683,1718903444527,-151.0,0.00054794,14]
[329991684,1718903444536,-151.0,0.00054794,14]
[329991685,1718903444545,-2250.28,0.00054794,120]
[329991686,1718903444555,-500.0,0.00054794,120]
[329991687,1718903444564,-151.0,0.00054794,14]
[329991688,1718903444574,-151.0,0.00054794,14]
[329991689,1718903444584,-500.0,0.00054794,120]
[329991690,1718903444593,-196.09616635,0.00054794,120]
[329991691,1718903444603,-151.0,0.00054794,14]
[329991692,1718903444613,-151.0,0.00054794,14]
[329991693,1718903444623,-151.0,0.00054794,14]
[329991694,1718903444632,-500.0,0.00054794,120]
[329991695,1718903444642,-151.0,0.00054794,14]
[329991696,1718903444651,-151.0,0.00054794,14]
[329991697,1718903444660,-151.0,0.00054794,14]
[329991698,1718903444670,-163.271812,0.00054794,14]
[329991699,1718903444679,-504.89638509,0.00054794,120]
[329991700,1718903444688,-185.8,0.00054794,14]
[329991701,1718903444697,-500.0,0.00054794,120]
[329991702,1718903444707,-500.0,0.00054794,120]
[329991703,1718903444716,-530.63003724,0.00054794,120]
[329991704,1718903444726,-500.0,0.00054794,120]
[329991705,1718903444735,-500.0,0.00054794,120]
[329991706,1718903444744,-511.4836172,0.00054794,120]
[329991707,1718903444755,-500.0,0.00054794,120]
[329991708,1718903444765,-500.0,0.00054794,120]
[329991709,1718903444778,-500.0,0.00054794,120]
[329991710,1718903444787,-503.46364103,0.00054794,120]
[329991711,1718903444796,-151.0,0.00054794,14]
[329991712,1718903444807,-151.0,0.00054794,14]
[329991713,1718903444816,-981.24,0.00054794,120]
[329991714,1718903444826,-500.0,0.00054794,120]
[329991715,1718903444835,-2586.17,0.00054794,120]
[329991716,1718903444845,-411.6235829,0.00054794,120]
[329991717,1718903444856,-500.0,0.00054794,60]
[329991718,1718903444865,-500.0,0.00054794,120]
[329991719,1718903444874,-500.0,0.00054794,120]
[329991720,1718903444884,-500.0,0.00054794,120]
[329991721,1718903444893,-500.0,0.00054794,120]
[329991722,1718903444902,-500.0,0.00054794,120]
[329991723,1718903444912,-151.0,0.00054794,14]
[329991724,1718903444921,-151.0,0.00054794,14]
[329991725,1718903444930,-500.0,0.00054794,120]
[329991726,1718903444939,-500.0,0.00054794,120]
[329991727,1718903444949,-500.0,0.00054794,120]
[329991728,1718903444959,-500.0,0.00054794,7]
[329991729,1718903444968,-500.0,0.00054794,120]
[329991730,1718903444978,-500.0,0.00054794,120]
[329991731,1718903444987,-500.0,0.00054794,120]
[329991732,1718903444997,-500.0,0.00054794,120]
[329991733,1718903445007,-500.0,0.00054794,120]
[329991734,1718903445016,-500.0,0.00054794,120]
[329991735,1718903445026,-500.0,0.00054794,120]
[329991736,1718903445035,-500.0,0.00054794,120]
[329991737,1718903445045,-500.0,0.00054794,120]
[329991738,1718903445054,-500.0,0.00054794,120]
[329991739,1718903445063,-500.0,0.00054794,120]
[329991740,1718903445073,-500.0,0.00054794,120]
[329991741,1718903445082,-500.0,0.00054794,120]
[329991742,1718903445091,-500.0,0.00054794,120]
[329991743,1718903445101,-500.0,0.00054794,30]
[329991744,1718903445110,-510.16329444,0.00054794,120]
[329991745,1718903445119,-514.07467831,0.00054794,120]
[329991746,1718903445128,-500.0,0.00054794,120]
[329991747,1718903445138,-500.0,0.00054794,120]
[329991748,1718903445147,-500.0,0.00054794,120]
[329991749,1718903445156,-505.29196995,0.00054794,120]
[329991750,1718903445165,-1210.719239,0.00054794,14]
[329991751,1718903445174,-626.88845059,0.00054794,120]
[329991752,1718903445184,-1210.719239,0.00054794,14]
[329991753,1718903445193,-500.0,0.00054794,120]
[329991754,1718903445284,-500.0,0.00054794,120]
[329991755,1718903445294,-4330.86,0.00054794,120]
[329991756,1718903445303,-500.0,0.00054794,120]
[329991757,1718903445313,-500.0,0.00054794,120]
[329991758,1718903445322,-500.0,0.00054794,120]
[329991759,1718903445332,-500.0,0.00054794,120]
[329991760,1718903445341,-1005.78570591,0.00054794,120]
[329991761,1718903445351,-500.0,0.00054794,120]
[329991762,1718903445361,-1210.719239,0.00054794,14]
[329991763,1718903445371,-1210.719239,0.00054794,14]
[329991764,1718903445380,-500.0,0.00054794,2]
[329991765,1718903445390,-500.0,0.00054794,120]
[329991766,1718903445400,-500.0,0.00054794,120]
[329991767,1718903445409,-510.10398228,0.00054794,120]
[329991768,1718903445419,-4777.498813,0.00054967,120]
[329991769,1718903445429,-4777.498813,0.00054967,120]
[329991770,1718903445438,-151.0,0.00054967,120]
[329991771,1718903445448,-1340.079762,0.00054967,120]
[329991772,1718903445458,-1340.079762,0.00054967,120]
[329991773,1718903445468,-151.0,0.00054967,120]
[329991774,1718903445477,-5011.15,0.00054967,120]
[329991775,1718903445487,-5011.15,0.00054967,120]
[329991776,1718903445497,-5011.15,0.00054967,120]
[329991777,1718903445507,-1210.719239,0.00054967,120]
[329991778,1718903445516,-1210.719239,0.00054967,120]
[329991779,1718903445525,-151.0,0.00054968,120]
[329991780,1718903445535,-151.0,0.00054968,120]
[329991781,1718903445545,-158.742791,0.00054968,120]
[329991782,1718903445554,-158.742791,0.00054968,120]
[329991783,1718903445563,-151.0,0.00054968,120]
[329991784,1718903445573,-254.462815,0.00054968,120]
[329991785,1718903445583,-254.462815,0.00054968,120]
[329991786,1718903445592,-151.0,0.00054968,120]
[329991787,1718903445601,-151.0,0.00054968,120]
[329991788,1718903445611,-241.50318,0.00054968,120]
[329991789,1718903445621,-241.50318,0.00054968,120]
[329991790,1718903445631,-158.668173,0.00054968,120]
[329991791,1718903445640,-158.668173,0.00054968,120]
[329991792,1718903445650,-655.172565,0.00054968,120]
[329991793,1718903445659,-151.0,0.00054968,120]
[329991794,1718903445669,-151.0,0.00054968,120]
[329991795,1718903445678,-151.0,0.00054968,120]
[329991796,1718903445688,-4777.498813,0.00054968,120]
[329991797,1718903445698,-2084.46889987,0.00054968,120]
[329991802,1718903445938,-222.654988,0.00054794,14]
[329991803,1718903445948,-222.654988,0.00054794,14]
[329991805,1718903445957,-2693.02991313,0.00054968,120]
[329991806,1718903445966,-151.0,0.00054968,120]
[329991807,1718903445976,-1340.079762,0.00054968,120]
[329991808,1718903445985,-699.13230362,0.00054968,120]
[329991809,1718903445997,-640.94745838,0.00054968,120]
[329991810,1718903446010,-151.0,0.00054968,120]
[329991811,1718903446019,-4250.158192,0.00054968,120]
[329991812,1718903446029,-4250.158192,0.00054968,120]
[329991813,1718903446038,-151.0,0.00054968,120]
[329991814,1718903446048,-367.826001,0.00054968,120]
[329991815,1718903446057,-151.0,0.00054968,120]
[329991816,1718903446067,-367.826001,0.00054968,120]
[329991817,1718903446076,-478.192287,0.00054968,120]
[329991818,1718903446086,-478.192287,0.00054968,120]
[329991819,1718903446096,-151.0,0.00054968,120]
[329991820,1718903446105,-199.766887,0.00054968,120]
[329991821,1718903446114,-151.0,0.00054968,120]
[329991822,1718903446124,-151.0,0.00054968,120]
[329991824,1718903446133,-151.0,0.00054968,120]
[329991825,1718903446143,-151.0,0.00054968,120]
[329991826,1718903446152,-5011.15,0.00054998,120]
[329991827,1718903446162,-500.0,0.00054999,120]
[329991828,1718903446172,-1111.06571277,0.00055,2]
[329991829,1718903446181,-252.0,0.00055,34]
[329991830,1718903446190,-1000.0,0.00055,120]
[329991831,1718903446200,-1000.0,0.00055,120]
[329991832,1718903446209,-322.0,0.00055038,62]
[329991833,1718903446219,-322.0,0.00055048,62]
[329991834,1718903446228,-322.0,0.00055058,62]
[329991835,1718903446238,-500.0,0.00055067,120]
[329991836,1718903446247,-500.0,0.00055067,120]
[329991837,1718903446263,-161.86279168,0.00055067,120]
[329991838,1718903446273,-151.0,0.00055067,120]
[329991839,1718903446281,-1092.74,0.00055067,30]
[329991840,1718903446290,-1092.74,0.00055067,30]
[329991841,1718903446299,-1092.74,0.00055067,30]
[329991842,1718903446308,-1092.74,0.00055067,30]
[329991843,1718903446317,-1092.74,0.00055067,30]
[329991844,1718903446325,-1092.74,0.00055067,30]
[329991845,1718903446334,-1092.74,0.00055067,30]
[329991846,1718903446343,-1092.74,0.00055067,30]
[329991847,1718903446352,-1092.74,0.00055067,30]
[329991848,1718903446361,-1092.74,0.00055067,30]
[329991849,1718903446370,-5011.15,0.00055067,120]
[329991850,1718903446380,-5011.15,0.00055067,120]
[329991851,1718903446389,-5011.15,0.00055067,120]
[329991852,1718903446398,-5011.15,0.00055067,120]
[329991853,1718903446408,-5011.15,0.00055067,120]
[329991854,1718903446417,-5011.15,0.00055067,120]
[329991855,1718903446426,-5011.25,0.00055067,120]
[329991856,1718903446435,-1210.719239,0.00055067,120]
[329991857,1718903446444,-1210.719239,0.00055067,120]
[329991858,1718903446453,-500.0,0.00055068,120]
[329991859,1718903446462,-500.0,0.00055068,120]
[329991860,1718903446471,-500.0,0.00055068,120]
[329991861,1718903446481,-500.0,0.00055068,120]
[329991862,1718903446490,-500.0,0.00055068,120]
[329991863,1718903446499,-500.0,0.00055068,120]
[329991864,1718903446510,-500.0,0.00055068,120]
[329991865,1718903446519,-500.0,0.00055068,120]
[329991866,1718903446528,-562.62138289,0.00055068,120]
[329991867,1718903446538,-500.0,0.00055068,120]
[329991868,1718903446547,-500.0,0.00055068,120]
[329991869,1718903446556,-250.0,0.00055068,120]
[329991870,1718903446566,-206.97584374,0.00055068,120]
[329991872,1718903446575,-500.0,0.00055068,120]
[329991873,1718903446585,-151.0,0.00055068,120]
[329991874,1718903446594,-151.0,0.00055068,120]
[329991875,1718903446603,-518.7521664,0.00055068,120]
[329991876,1718903446613,-516.89966868,0.00055068,120]
[329991877,1718903446623,-151.0,0.00055068,120]
[329991878,1718903446632,-151.0,0.00055068,120]
[329991879,1718903446641,-686.27,0.00055068,120]
[329991880,1718903446652,-511.6321609,0.00055068,120]
[329991881,1718903446661,-500.0,0.00055068,120]
[329991882,1718903446670,-500.0,0.00055068,2]
[329991883,1718903446680,-500.0,0.00055068,120]
[329991884,1718903446689,-512.15065637,0.00055068,120]
[329991885,1718903446698,-500.0,0.00055068,120]
[329991886,1718903446707,-500.0,0.00055068,120]
[329991887,1718903446716,-500.0,0.00055068,120]
[329991888,1718903446726,-774.5,0.00055068,120]
[329991889,1718903446735,-645.99,0.00055068,120]
[329991891,1718903446744,-500.0,0.00055068,120]
[329991893,1718903446759,-500.0,0.00055068,120]
[329991894,1718903446771,-158.742791,0.00055068,120]
[329991896,1718903446780,-158.742791,0.00055068,120]
[329991898,1718903446789,-500.0,0.00055068,120]
[329991900,1718903446798,-158.742791,0.00055068,120]
[329991902,1718903446808,-158.742791,0.00055068,120]
[329991904,1718903446817,-500.0,0.00055068,120]
[329991906,1718903446826,-504.6556368,0.00055068,120]
[329991908,1718903446835,-500.0,0.00055068,120]
[329991910,1718903446845,-1000.0,0.00055068,120]
[329991912,1718903446855,-500.0,0.00055068,120]
[329991914,1718903446864,-500.0,0.00055068,120]
[329991915,1718903446872,-254.462815,0.00055068,120]
[329991916,1718903446881,-254.462815,0.00055068,120]
[329991917,1718903446890,-500.0,0.00055068,120]
[329991926,1718903446900,-254.462815,0.00055068,120]
[329991929,1718903446983,-254.462815,0.00055068,120]
[329991931,1718903446992,-500.0,0.00055068,120]
[329991933,1718903447003,-500.0,0.00055068,120]
[329991935,1718903447013,-500.0,0.00055068,120]
[329991937,1718903447022,-482.49264353,0.00055068,120]
[329991938,1718903447031,-500.0,0.00055068,120]
[329991940,1718903447040,-500.0,0.00055068,120]
[329991942,1718903447049,-500.0,0.00055068,120]
[329991945,1718903447058,-500.0,0.00055068,120]
[329991946,1718903447068,-500.0,0.00055068,120]
[329991948,1718903447077,-500.0,0.00055068,120]
[329991950,1718903447086,-200.0,0.00055068,7]
[329991952,1718903447096,-1494.48,0.00055068,120]
[329991954,1718903447105,-500.0,0.00055068,120]
[329991956,1718903447114,-323.27453822,0.00055068,120]
[329991958,1718903447123,-500.0,0.00055068,120]
[329991960,1718903447132,-500.0,0.00055068,120]
[329991962,1718903447141,-2227.27,0.00055068,120]
[329991964,1718903447150,-500.0,0.00055068,120]
[329991966,1718903447160,-500.0,0.00055068,120]
[329991968,1718903447169,-500.0,0.00055068,120]
[329991970,1718903447178,-500.0,0.00055068,120]
[329991972,1718903447188,-500.0,0.00055068,120]
[329991974,1718903447197,-500.0,0.00055068,20]
[329991976,1718903447206,-518.58279613,0.00055068,120]
[329991978,1718903447215,-151.0,0.00055068,120]
[329991980,1718903447225,-151.0,0.00055068,120]
[329991982,1718903447234,-500.0,0.00055068,120]
[329991984,1718903447243,-151.0,0.00055068,120]
[329991986,1718903447253,-182.106432,0.00055068,120]
[329991988,1718903447262,-602.95,0.00055068,2]
[329991989,1718903447271,-500.0,0.00055068,120]
[329991990,1718903447280,-241.50318,0.00055068,120]
[329991991,1718903447289,-241.50318,0.00055068,120]
[329991992,1718903447297,-241.50318,0.00055068,120]
[329991993,1718903447306,-241.50318,0.00055068,120]
[329991994,1718903447316,-500.0,0.00055068,120]
[329991995,1718903447325,-158.668173,0.00055068,120]
[329991996,1718903447334,-158.668173,0.00055068,120]
[329991997,1718903447343,-158.668173,0.00055068,120]
[329991998,1718903447352,-158.668173,0.00055068,120]
[329991999,1718903447361,-655.172565,0.00055068,120]
[329992000,1718903447370,-500.0,0.00055068,120]
[329992001,1718903447379,-655.172565,0.00055068,120]
[329992002,1718903447389,-510.40175934,0.00055068,120]
[329992003,1718903447398,-500.0,0.00055068,120]
[329992004,1718903447407,-500.0,0.00055068,120]
[329992005,1718903447416,-500.0,0.00055068,120]
[329992006,1718903447425,-151.0,0.00055068,120]
[329992007,1718903447436,-151.0,0.00055068,120]
[329992008,1718903447446,-580.91149549,0.00055068,120]
[329992009,1718903447456,-500.0,0.00055068,120]
[329992010,1718903447465,-151.0,0.00055068,120]
[329992011,1718903447475,-151.0,0.00055068,120]
[329992012,1718903447485,-505.40843976,0.00055068,120]
[329992013,1718903447494,-500.0,0.00055068,120]
[329992014,1718903447506,-509.90394442,0.00055068,120]
[329992015,1718903447516,-500.0,0.00055068,120]
[329992016,1718903447525,-3508.52,0.00055068,60]
[329992017,1718903447534,-500.0,0.00055068,120]
[329992018,1718903447543,-214.95505878,0.00055068,120]
[329992019,1718903447553,-500.0,0.00055068,120]
[329992020,1718903447563,-500.0,0.00055068,120]
[329992021,1718903447572,-157.202612,0.00055068,120]
[329992022,1718903447581,-500.0,0.00055068,120]
[329992023,1718903447590,-500.0,0.00055068,2]
[329992024,1718903447599,-500.0,0.00055068,120]
[329992025,1718903447609,-500.0,0.00055068,120]
[329992026,1718903447618,-500.0,0.00055068,120]
[329992027,1718903447628,-500.0,0.00055068,120]
[329992028,1718903447637,-494.9620619,0.00055068,120]
[329992029,1718903447647,-4777.498813,0.00055068,120]
[329992030,1718903447657,-4777.498813,0.00055068,120]
[329992031,1718903447667,-517.9455013,0.00055068,120]
[329992032,1718903447677,-518.38962322,0.00055068,120]
[329992033,1718903447686,-182.92784373,0.00055068,120]
[329992034,1718903447702,-337.77033312,0.00055068,120]
[329992035,1718903447718,-222.654988,0.00054968,120]
[329992036,1718903447727,-4256.80063615,0.00055068,120]
[329992037,1718903447735,-4777.498813,0.00055068,120]
[329992038,1718903447745,-151.0,0.00055068,120]
[329992039,1718903447757,-500.0,0.00055068,120]
[329992040,1718903447771,-218.497356,0.00055068,120]
[329992041,1718903447780,-500.0,0.00055068,120]
[329992042,1718903447789,-500.0,0.00055068,120]
[329992043,1718903447798,-543.13,0.00055068,120]
[329992044,1718903447809,-503.2116814,0.00055068,120]
[329992045,1718903447818,-500.0,0.00055068,120]
[329992046,1718903447828,-500.0,0.00055068,120]
[329992047,1718903447840,-1311.44,0.00055068,120]
[329992048,1718903447849,-500.0,0.00055068,120]
[329992049,1718903447858,-426.62860003,0.00055068,120]
[329992050,1718903447867,-500.0,0.00055068,120]
[329992051,1718903447876,-508.20157269,0.00055068,120]
[329992052,1718903447887,-500.0,0.00055068,120]
[329992053,1718903447896,-434.67874742,0.00055068,120]
[329992054,1718903447905,-500.0,0.00055068,120]
[329992055,1718903447914,-500.0,0.00055068,120]
[329992056,1718903447924,-151.0,0.00055068,120]
[329992057,1718903447933,-151.0,0.00055068,120]
[329992058,1718903447943,-500.0,0.00055068,120]
[329992059,1718903447951,-500.0,0.00055068,120]
[329992060,1718903447960,-500.0,0.00055068,120]
[329992061,1718903447969,-500.0,0.00055068,120]
[329992062,1718903447979,-500.0,0.00055068,120]
[329992063,1718903447988,-500.0,0.00055068,120]
[329992064,1718903447997,-500.0,0.00055068,120]
[329992065,1718903448007,-500.0,0.00055068,120]
[329992066,1718903448016,-1340.079762,0.00055068,120]
[329992067,1718903448025,-1340.079762,0.00055068,120]
[329992068,1718903448034,-500.0,0.00055068,120]
[329992069,1718903448043,-500.0,0.00055068,120]
[329992070,1718903448053,-1340.079762,0.00055068,120]
[329992071,1718903448062,-1340.079762,0.00055068,120]
[329992072,1718903448071,-500.0,0.00055068,120]
[329992073,1718903448080,-502.07907272,0.00055068,120]
[329992074,1718903448089,-17111.72,0.00055068,120]
[329992075,1718903448098,-500.0,0.00055068,120]
[329992076,1718903448107,-500.0,0.00055068,120]
[329992077,1718903448117,-4250.158192,0.00055068,120]
[329992078,1718903448127,-4250.158192,0.00055068,120]
[329992079,1718903448136,-4250.158192,0.00055068,120]
[329992080,1718903448146,-1541.51,0.00055068,120]
[329992081,1718903448156,-1271.0,0.00055068,21]
[329992082,1718903448166,-4105.74731508,0.00055068,120]
[329992089,1718903448589,-681.01915666,0.00054784,3]
[329992090,1718903448601,-1414.99028413,0.00054784,3]
[329992091,1718903448613,-639.30342175,0.00054784,3]
[329992092,1718903448776,-168.58499966,0.00054794,14]
[329992093,1718903448790,-54.06998834,0.00054794,14]
[329992094,1718903448799,-222.654988,0.00054794,14]
[329992095,1718903448809,-222.654988,0.00054968,120]
[329992096,1718903448819,-144.41087692,0.00055068,120]
[329992097,1718903448829,-500.0,0.00055068,120]
[329992098,1718903448838,-500.0,0.00055068,120]
[329992099,1718903448851,-500.0,0.00055068,120]
[329992100,1718903448861,-192.30434021,0.00055068,120]
[329992101,1718903448870,-505.83854385,0.00055068,120]
[329992102,1718903448879,-500.0,0.00055068,120]
[329992103,1718903448889,-500.0,0.00055068,120]
[329992104,1718903448899,-2471.46,0.00055068,120]
[329992105,1718903448908,-500.0,0.00055068,120]
[329992106,1718903448917,-500.0,0.00055068,120]
[329992107,1718903448926,-500.0,0.00055068,120]
[329992108,1718903448936,-500.0,0.00055068,120]
[329992109,1718903448945,-510.14145073,0.00055068,120]
[329992110,1718903448955,-500.0,0.00055068,120]
[329992111,1718903448964,-311.49899037,0.00055068,120]
[329992112,1718903448973,-500.0,0.00055068,120]
[329992113,1718903448982,-151.0,0.00055068,120]
[329992114,1718903448992,-151.0,0.00055068,120]
[329992115,1718903449001,-593.66,0.00055068,120]
[329992116,1718903449011,-500.0,0.00055068,120]
[329992117,1718903449020,-367.826001,0.00055068,120]
[329992118,1718903449030,-367.826001,0.00055068,120]
[329992119,1718903449039,-2183.6,0.00055068,120]
[329992120,1718903449048,-503.18799374,0.00055068,120]
[329992121,1718903449057,-500.0,0.00055068,120]
[329992122,1718903449066,-151.0,0.00055068,120]
[329992123,1718903449075,-237.901058,0.00055068,120]
[329992124,1718903449085,-367.826001,0.00055068,120]
[329992125,1718903449094,-367.826001,0.00055068,120]
[329992126,1718903449103,-500.0,0.00055068,120]
[329992127,1718903449113,-500.0,0.00055068,90]
[329992128,1718903449123,-500.0,0.00055068,120]
[329992129,1718903449133,-226.29745101,0.00055068,120]
[329992130,1718903449142,-500.0,0.00055068,120]
[329992131,1718903449151,-500.0,0.00055068,120]
[329992132,1718903449160,-500.0,0.00055068,120]
[329992133,1718903449170,-500.0,0.00055068,120]
[329992134,1718903449179,-500.0,0.00055068,120]
[329992135,1718903449189,-502.10881892,0.00055068,120]
[329992136,1718903449198,-509.99738008,0.00055068,120]
[329992137,1718903449208,-514.4140487,0.00055068,120]
[329992138,1718903449218,-500.0,0.00055068,120]
[329992139,1718903449228,-507.46232439,0.00055068,120]
[329992140,1718903449237,-500.0,0.00055068,120]
[329992141,1718903449246,-500.0,0.00055068,120]
[329992142,1718903449259,-500.0,0.00055068,120]
[329992143,1718903449268,-1888.23,0.00055068,120]
[329992144,1718903449278,-500.0,0.00055068,120]
[329992145,1718903449287,-530.71672133,0.00055068,120]
[329992146,1718903449296,-500.0,0.00055068,120]
[329992147,1718903449310,-481.0226647,0.00055068,120]
[329992148,1718903449319,-533.28293563,0.00055068,120]
[329992149,1718903449328,-500.0,0.00055068,120]
[329992150,1718903449337,-500.0,0.00055068,120]
[329992151,1718903449347,-500.0,0.00055068,120]
[329992152,1718903449356,-500.0,0.00055068,7]
[329992153,1718903449365,-500.0,0.00055068,120]
[329992154,1718903449375,-500.0,0.00055068,120]
[329992155,1718903449384,-500.0,0.00055068,120]
[329992156,1718903449393,-500.0,0.00055068,120]
[329992157,1718903449403,-500.0,0.00055068,120]
[329992158,1718903449412,-500.0,0.00055068,120]
[329992159,1718903449422,-500.0,0.00055068,120]
[329992160,1718903449431,-7580.14,0.00055068,120]
[329992161,1718903449440,-500.0,0.00055068,120]
[329992162,1718903449449,-1117.26,0.00055068,120]
[329992163,1718903449458,-216.61352034,0.00055068,120]
[329992164,1718903449467,-500.0,0.00055068,120]
[329992165,1718903449476,-3240.93,0.00055068,120]
[329992166,1718903449485,-589.82225239,0.00055068,120]
[329992167,1718903449494,-500.0,0.00055068,120]
[329992168,1718903449505,-959.8,0.00055068,120]
[329992169,1718903449515,-478.192287,0.00055068,120]
[329992170,1718903449524,-478.192287,0.00055068,120]
[329992171,1718903449533,-478.192287,0.00055068,120]
[329992172,1718903449543,-1155.23,0.00055068,120]
[329992173,1718903449552,-478.192287,0.00055068,120]
[329992174,1718903449561,-478.192287,0.00055068,120]
[329992175,1718903449571,-478.192287,0.00055068,120]
[329992176,1718903449580,-630.91965825,0.00055068,120]
[329992177,1718903449589,-500.0,0.00055068,120]
[329992178,1718903449598,-507.53926927,0.00055068,120]
[329992179,1718903449607,-500.0,0.00055068,120]
[329992180,1718903449617,-500.0,0.00055068,120]
[329992181,1718903449626,-151.0,0.00055068,120]
[329992182,1718903449636,-151.0,0.00055068,120]
[329992183,1718903449646,-2250.28,0.00055068,120]
[329992184,1718903449655,-151.0,0.00055068,120]
[329992185,1718903449664,-500.0,0.00055068,120]
[329992186,1718903449673,-500.0,0.00055068,120]
[329992187,1718903449682,-151.0,0.00055068,120]
[329992188,1718903449692,-151.0,0.00055068,120]
[329992189,1718903449701,-151.0,0.00055068,120]
[329992190,1718903449710,-151.0,0.00055068,120]